{"text_format":"1","workbook":"xlsx","n_sheets":3,"sheets":["Änderungsabfrage mKoK","Ril 100 Codes","Drop-down"],"not_rendered":{"charts":0,"images":3,"macros":1,"external_links":0,"defined_names":14,"comments":0,"pivot_tables":0},"unopened":[],"bounds":{"document_bytes":16777216,"sheet_cells":100000,"rows_first":2000,"rows_last":500,"rows_between":2000,"halvings":0,"cell_chars":16384,"cell_head_chars":4096},"cells_cut":0,"cells_raw":0,"read":"whole","date_system":"1900"}

{"sheet":"Änderungsabfrage mKoK","index":0,"n_rows":305,"n_cols":32,"rows_kept":305,"cut":false,"hidden":false,"merged":[[0,0,0,16],[3,1,3,4],[3,13,3,22],[3,23,3,31],[1,0,1,16],[3,5,3,12]]}
["Rückmeldung zum Entwurf zum \"mittelfristigen Konzept für eine optimierte Kapazitätsnutzung (mKoK) zur Weiterentwicklung in Richtung Fahrplanjahr 2028ff\"\n(an kazu.novum@deutschebahn.com bis spätestens 19.06.2024)"]
["Bitte keine neuen Spalten einfügen!"]
[]
[null,"Kontakt",null,null,null,"Grunddaten der Rückmeldung",null,null,null,null,null,null,null,"Ausdetaillierung Änderungs- bzw. Verkehrswunsch Fahrlage",null,null,null,null,null,null,null,null,null,"Ausdetaillierung Änderungs- bzw. Verkehrswunsch Zugcharakteristik"]
["Lfd. Nr.","Zugangsberechtigter","Ansprechpartner:in","E-Mail","Telefon","Verkehrsart","Art der Rückmeldung","mKoK-Netzgrafik","mKoK-Linie","Start-Betriebsstelle [Klarname (RIL100 Code)] (zur eindeutigen Identifikation der mKoK-Linie)","Ziel-Betriebsstelle [Klarname (RIL100 Code)] (zur eindeutigen Identifikation der mKoK-Linie)","Hintergrund Änderungswunsch / Zusatzverkehr","Begründung zum Änderungswunsch / Zusatzverkehr","Art des Angebots","Taktung (min)","Anzahl Kapazitäten","Startbetriebsstelle [Klarname (RIL100 Code)]","Zielbetriebsstelle [Klarname (RIL100 Code)]","Abfahrtszeit Startbetriebsstelle (Einzellage bzw. erste Taktlage) [hh:mm]","Ankunftszeit Zielbetriebsstelle (Einzellage bzw. erste Taktlage) [hh:mm]","Laufweg [RIL100 Code] \n(Halte ohne Klammern, Via-Punkte in Klammern) Beispiel: FF,FHA,(FWB),FFU","Anschlussbeziehungen\n(Angabe von Bst mit Anschluss + betreffende mKoK-Linie)","sonstige Hinweise zur Fahrlage","Triebfahrzeug lt. GFD-I","Höchst-geschwindigkeit [km/h]","Bremsstellung","Brems-hundertstel","Länge Gesamtzug [m]","Masse Gesamtzug [t]","alle verfügbaren Zugsicherungen","geforderte Streckenklasse","Sonstige Hinweise zur Zugcharakteristik"]
[{"$f":"ROW(G6)-5","v":1},"Fiktive Beispiele",null,null,null,null,null,null,null,null,null,null,null,null,null,null,null,null,"","",""]
[2,"Zugangsberechtigter A","Maxi Mustermann","m.muster@mustermail.com","0123456789","FV","Bestätigung","SPFV Gesamt","FV99","Berlin (BL)","Köln (KK)","Angabe nicht nötig","Angabe nicht nötig","Angabe nicht nötig","Angabe nicht nötig","Angabe nicht nötig","Angabe nicht nötig","Angabe nicht nötig","Angabe nicht nötig","Angabe nicht nötig","Angabe nicht nötig","Angabe nicht nötig","Angabe nicht nötig","Angabe nicht nötig","Angabe nicht nötig","Angabe nicht nötig","Angabe nicht nötig","Angabe nicht nötig","Angabe nicht nötig","Angabe nicht nötig","Angabe nicht nötig","Angabe nicht nötig"]
[3,"Zugangsberechtigter A","Maxi Mustermann","m.muster@mustermail.com","0123456789","FV","Änderungswunsch","SPFV Gesamt","FVxx","Hamburg (AH)","München (MH)","Grundsätzlicher Anpassungswunsch im mKoK","Weiterer Halt in A-Dorf entsprechend Haltepolitik im D-Takt gewünscht",null,null,null,null,null,"","","AH - BL - A-Dorf - MH"]
[4,"Zugangsberechtigter A","Maxi Mustermann","m.muster@mustermail.com","0123456789","FV","Änderungswunsch","SPFV Gesamt","FVxx","Frankfurt (FF)","Basel (RBA)","Infrastrukturelle Änderungen 2027 / 2028","Aufgrund IBN Infrastruktur \"Tunnel B-Dorf\" bessere Ausnutzung der Streckenhöchstgeschwindigkeit zur Realisierung der Knotenstruktur in C-Stadt ähnlich D-Takt",null,null,null,null,null,null,null,null,"Anschluss in C-Stadt an mKoK-Linie FV 200 und NV 50",null,null,250]
[5,"Zugangsberechtigter A","Maxi Mustermann","m.muster@mustermail.com","0123456789","FV","Zusatzverkehr","Angabe nicht nötig","Angabe nicht nötig","Angabe nicht nötig","Angabe nicht nötig","Infrastrukturelle Änderungen 2027 / 2028","Aufgrund IBN Infrastruktur \"Tunnel C-Dorf\" Zusatzverkehr zur Bedienung des höheren Verkehrsbedürfnisses erforderlich","Takt","120 min",null,"Köln (KK)","Basel (RXBA)","09:00:00","15:00:00","KK - KB - (FMZ) - RM - RK - RXBA","Anschluss in RM aus / an mKoK-Linie FV123","wenn Halt FMZ problemlos realisierbar, dann bitte umsetzen","80 6193-2",200,"R+Mg",195,230,517,"PZB, LZB, ETCS","D2"]
[6,"Zugangsberechtigter B","Maxi Mustermann","m.muster@mustermail.com","0123456790","NV","Bestätigung","SPV Bayern","RE99","Nürnberg (NN)","München (MH)","Angabe nicht nötig","Angabe nicht nötig","Angabe nicht nötig","Angabe nicht nötig","Angabe nicht nötig","Angabe nicht nötig","Angabe nicht nötig","Angabe nicht nötig","Angabe nicht nötig","Angabe nicht nötig","Angabe nicht nötig","Angabe nicht nötig","Angabe nicht nötig","Angabe nicht nötig","Angabe nicht nötig","Angabe nicht nötig","Angabe nicht nötig","Angabe nicht nötig","Angabe nicht nötig","Angabe nicht nötig","Angabe nicht nötig"]
[7,"Zugangsberechtigter B","Maxi Mustermann","m.muster@mustermail.com","0123456790","NV","Bestätigung","SPV Bayern","RExx","Würzburg (NWH)","Augsburg (MA)","Angabe nicht nötig","Angabe nicht nötig","Angabe nicht nötig","Angabe nicht nötig","Angabe nicht nötig","Angabe nicht nötig","Angabe nicht nötig","Angabe nicht nötig","Angabe nicht nötig","Angabe nicht nötig","Angabe nicht nötig","Angabe nicht nötig","Angabe nicht nötig","Angabe nicht nötig","Angabe nicht nötig","Angabe nicht nötig","Angabe nicht nötig","Angabe nicht nötig","Angabe nicht nötig","Angabe nicht nötig","Angabe nicht nötig"]
[8,"Zugangsberechtigter B","Maxi Mustermann","m.muster@mustermail.com","0123456790","NV","Änderungswunsch","SPV Hessen","RBxx","Fulda (FFU)","Frankfurt (FF)","Grundsätzlicher Anpassungswunsch im mKoK","spätere Abfahrt in FFU erforderlich, da kein Anschluss in FFU aus Verkehren aus Ri B-Tal",null,null,null,null,null,"05:09","",null,"Anschluss in FFU aus mKoK-Linie NV123"]
[9,"Zugangsberechtigter B","Maxi Mustermann","m.muster@mustermail.com","0123456790","NV","Zusatzverkehr","Angabe nicht nötig","Angabe nicht nötig","Angabe nicht nötig","Angabe nicht nötig","Infrastrukturelle Änderungen 2027 / 2028","zusätzlicher Verkehr entsprechend Ausschreibung Netz Alpendorf","Takt","60 min",null,"Würzburg (NWH)","München (MH)","08:15:00","10:59:00","NWH - NN - MIH - MH","keine",null,"80 1440-17 + 80 1440-17",160,"R+Mg",196,179.4,371.4,"PZB","C2"]
[10,"Zugangsberechtigter C","Maxi Mustermann","m.muster@mustermail.com","0123456791","GV","Bestätigung","SGV Nordost","GV999.9","Maschen (AM)","Seelze (AS)","Angabe nicht nötig","Angabe nicht nötig","Angabe nicht nötig","Angabe nicht nötig","Angabe nicht nötig","Angabe nicht nötig","Angabe nicht nötig","Angabe nicht nötig","Angabe nicht nötig","Angabe nicht nötig","Angabe nicht nötig","Angabe nicht nötig","Angabe nicht nötig","Angabe nicht nötig","Angabe nicht nötig","Angabe nicht nötig","Angabe nicht nötig","Angabe nicht nötig","Angabe nicht nötig","Angabe nicht nötig","Angabe nicht nötig"]
[11,"Zugangsberechtigter C","Maxi Mustermann","m.muster@mustermail.com","0123456791","GV","Änderungswunsch","SGV Sued","GV999","Mannheim (RM)","Basel (RBA)","Grundsätzlicher Anpassungswunsch im mKoK","Zusätzlicher LPW-Halt in B-Dorf erforderlich",null,null,null,null,null,"","","RM - B-Dorf - RXBA"]
[12,"Zugangsberechtigter C","Maxi Mustermann","m.muster@mustermail.com","0123456791","GV","Zusatzverkehr","Angabe nicht nötig","Angabe nicht nötig","Angabe nicht nötig","Angabe nicht nötig","Grundsätzlicher Anpassungswunsch im mKoK","Zusatzverkehr aufgrund Neubau Werk \"B-Werk\"","Takt","120 min",null,"A-Dorf (AD)","B-Stadt (BS)","06:00:00","12:00","A-Dorf - (C-Dorf) - (G-Dorf) - B-Stadt","keine",null,"80 6185-2",100,"P",68,700,1600,"PZB, LZB","D4"]
[13,"Zugangsberechtigter C","Maxi Mustermann","m.muster@mustermail.com","0123456791","GV","Änderungswunsch","SGV Sued","GVxxx.x","Mannheim (RM)","Basel (RBA)","Grundsätzlicher Anpassungswunsch im mKoK","Höhere Taktfrequenz und höhere Tonnage wegen absehbarem Transportbedürfnis benötigt","Takt","60 min",null,null,null,null,null,"",null,null,null,null,"G",null,null,2000]
[14,"Individuelle Rückmeldung",null,null,null,null,null,null,null,null,null,null,null,null,null,null,null,null,"","",""]
[15,null,null,null,null,null,null,null,null,null,null,null,null,null,null,null,null,null,null,null,""]
[{"$f":"ROW(G21)-5","v":16},null,null,null,null,null,null,null,null,null,null,null,null,null,null,null,null,null,"","",""]
[17,null,null,null,null,null,null,null,null,null,null,null,null,null,null,null,null,null,null,null,""]
[{"$f":"ROW(G23)-5","v":18},null,null,null,null,null,null,null,null,null,null,null,null,null,null,null,null,null,"","",""]
[{"$f":"ROW(G24)-5","v":19},null,null,null,null,null,null,null,null,null,null,null,null,null,null,null,null,null,"","",""]
[{"$f":"ROW(G25)-5","v":20},null,null,null,null,null,null,null,null,null,null,null,null,null,null,null,null,null,"","",""]
[{"$f":"ROW(G26)-5","v":21},null,null,null,null,null,null,null,null,null,null,null,null,null,null,null,null,null,null,null,""]
[22,null,null,null,null,null,null,null,null,null,null,null,null,null,null,null,null,null,"","",""]
[23,null,null,null,null,null,null,null,null,null,null,null,null,null,null,null,null,null,"","",""]
[24,null,null,null,null,null,null,null,null,null,null,null,null,null,null,null,null,null,"","",""]
[25,null,null,null,null,null,null,null,null,null,null,null,null,null,null,null,null,null,"","",""]
[26,null,null,null,null,null,null,null,null,null,null,null,null,null,null,null,null,null,"","",""]
[27,null,null,null,null,null,null,null,null,null,null,null,null,null,null,null,null,null,"","",""]
[28,null,null,null,null,null,null,null,null,null,null,null,null,null,null,null,null,null,"","",""]
[29,null,null,null,null,null,null,null,null,null,null,null,null,null,null,null,null,null,"","",""]
[30,null,null,null,null,null,null,null,null,null,null,null,null,null,null,null,null,null,"","",""]
[31]
[32]
[33]
[34]
[35]
[36,null,null,null,null,null,null,null,null,null,null,null,null,null,null,null,null,null,null,null,""]
[37]
[38]
[39]
[40,null,null,null,null,null,null,null,null,null,null,null,null,null,null,null,null,null,null,null,""]
[41,null,null,null,null,null,null,null,null,null,null,null,null,null,null,null,null,null,null,null,""]
[42,null,null,null,null,null,null,null,null,null,null,null,null,null,null,null,null,null,null,null,""]
[43,null,null,null,null,null,null,null,null,null,null,null,null,null,null,null,null,null,null,null,""]
[44,null,null,null,null,null,null,null,null,null,null,null,null,null,null,null,null,null,null,null,""]
[45,null,null,null,null,null,null,null,null,null,null,null,null,null,null,null,null,null,null,null,""]
[46,null,null,null,null,null,null,null,null,null,null,null,null,null,null,null,null,null,null,null,""]
[47,null,null,null,null,null,null,null,null,null,null,null,null,null,null,null,null,null,null,null,""]
[48,null,null,null,null,null,null,null,null,null,null,null,null,null,null,null,null,null,null,null,""]
[49,null,null,null,null,null,null,null,null,null,null,null,null,null,null,null,null,null,null,null,""]
[50,null,null,null,null,null,null,null,null,null,null,null,null,null,null,null,null,null,null,null,""]
[51,null,null,null,null,null,null,null,null,null,null,null,null,null,null,null,null,null,null,null,""]
[52,null,null,null,null,null,null,null,null,null,null,null,null,null,null,null,null,null,null,null,""]
[53,null,null,null,null,null,null,null,null,null,null,null,null,null,null,null,null,null,null,null,""]
[54,null,null,null,null,null,null,null,null,null,null,null,null,null,null,null,null,null,null,null,""]
[55,null,null,null,null,null,null,null,null,null,null,null,null,null,null,null,null,null,null,null,""]
[56,null,null,null,null,null,null,null,null,null,null,null,null,null,null,null,null,null,null,null,""]
[57,null,null,null,null,null,null,null,null,null,null,null,null,null,null,null,null,null,null,null,""]
[58,null,null,null,null,null,null,null,null,null,null,null,null,null,null,null,null,null,null,null,""]
[59,null,null,null,null,null,null,null,null,null,null,null,null,null,null,null,null,null,null,null,""]
[60,null,null,null,null,null,null,null,null,null,null,null,null,null,null,null,null,null,null,null,""]
[61,null,null,null,null,null,null,null,null,null,null,null,null,null,null,null,null,null,null,null,""]
[62,null,null,null,null,null,null,null,null,null,null,null,null,null,null,null,null,null,null,null,""]
[63,null,null,null,null,null,null,null,null,null,null,null,null,null,null,null,null,null,null,null,""]
[64,null,null,null,null,null,null,null,null,null,null,null,null,null,null,null,null,null,"","",""]
[65,null,null,null,null,null,null,null,null,null,null,null,null,null,null,null,null,null,"","",""]
[66,null,null,null,null,null,null,null,null,null,null,null,null,null,null,null,null,null,"","",""]
[67,null,null,null,null,null,null,null,null,null,null,null,null,null,null,null,null,null,"","",""]
[68,null,null,null,null,null,null,null,null,null,null,null,null,null,null,null,null,null,"","",""]
[69,null,null,null,null,null,null,null,null,null,null,null,null,null,null,null,null,null,"","",""]
[70,null,null,null,null,null,null,null,null,null,null,null,null,null,null,null,null,null,"","",""]
[71,null,null,null,null,null,null,null,null,null,null,null,null,null,null,null,null,null,"","",""]
[72,null,null,null,null,null,null,null,null,null,null,null,null,null,null,null,null,null,"","",""]
[73,null,null,null,null,null,null,null,null,null,null,null,null,null,null,null,null,null,"","",""]
[74,null,null,null,null,null,null,null,null,null,null,null,null,null,null,null,null,null,"","",""]
[75,null,null,null,null,null,null,null,null,null,null,null,null,null,null,null,null,null,"","",""]
[76,null,null,null,null,null,null,null,null,null,null,null,null,null,null,null,null,null,"","",""]
[77,null,null,null,null,null,null,null,null,null,null,null,null,null,null,null,null,null,"","",""]
[78,null,null,null,null,null,null,null,null,null,null,null,null,null,null,null,null,null,"","",""]
[79,null,null,null,null,null,null,null,null,null,null,null,null,null,null,null,null,null,"","",""]
[80,null,null,null,null,null,null,null,null,null,null,null,null,null,null,null,null,null,"","",""]
[81,null,null,null,null,null,null,null,null,null,null,null,null,null,null,null,null,null,"","",""]
[82,null,null,null,null,null,null,null,null,null,null,null,null,null,null,null,null,null,"","",""]
[83,null,null,null,null,null,null,null,null,null,null,null,null,null,null,null,null,null,"","",""]
[84,null,null,null,null,null,null,null,null,null,null,null,null,null,null,null,null,null,"","",""]
[{"$f":"ROW(G90)-5","v":85},null,null,null,null,null,null,null,null,null,null,null,null,null,null,null,null,null,"","",""]
[86,null,null,null,null,null,null,null,null,null,null,null,null,null,null,null,null,null,"","",""]
[87,null,null,null,null,null,null,null,null,null,null,null,null,null,null,null,null,null,"","",""]
[88,null,null,null,null,null,null,null,null,null,null,null,null,null,null,null,null,null,"","",""]
[89,null,null,null,null,null,null,null,null,null,null,null,null,null,null,null,null,null,"","",""]
[90,null,null,null,null,null,null,null,null,null,null,null,null,null,null,null,null,null,"","",""]
[91,null,null,null,null,null,null,null,null,null,null,null,null,null,null,null,null,null,"","",""]
[92,null,null,null,null,null,null,null,null,null,null,null,null,null,null,null,null,null,"","",""]
[93,null,null,null,null,null,null,null,null,null,null,null,null,null,null,null,null,null,"","",""]
[94,null,null,null,null,null,null,null,null,null,null,null,null,null,null,null,null,null,"","",""]
[95,null,null,null,null,null,null,null,null,null,null,null,null,null,null,null,null,null,"","",""]
[96,null,null,null,null,null,null,null,null,null,null,null,null,null,null,null,null,null,"","",""]
[97,null,null,null,null,null,null,null,null,null,null,null,null,null,null,null,null,null,"","",""]
[98,null,null,null,null,null,null,null,null,null,null,null,null,null,null,null,null,null,"","",""]
[99,null,null,null,null,null,null,null,null,null,null,null,null,null,null,null,null,null,"","",""]
[100,null,null,null,null,null,null,null,null,null,null,null,null,null,null,null,null,null,"","",""]
[101,null,null,null,null,null,null,null,null,null,null,null,null,null,null,null,null,null,"","",""]
[102,null,null,null,null,null,null,null,null,null,null,null,null,null,null,null,null,null,"","",""]
[103,null,null,null,null,null,null,null,null,null,null,null,null,null,null,null,null,null,"","",""]
[104,null,null,null,null,null,null,null,null,null,null,null,null,null,null,null,null,null,"","",""]
[105,null,null,null,null,null,null,null,null,null,null,null,null,null,null,null,null,null,"","",""]
[106,null,null,null,null,null,null,null,null,null,null,null,null,null,null,null,null,null,"","",""]
[107,null,null,null,null,null,null,null,null,null,null,null,null,null,null,null,null,null,"","",""]
[108,null,null,null,null,null,null,null,null,null,null,null,null,null,null,null,null,null,"","",""]
[109,null,null,null,null,null,null,null,null,null,null,null,null,null,null,null,null,null,"","",""]
[110,null,null,null,null,null,null,null,null,null,null,null,null,null,null,null,null,null,"","",""]
[111,null,null,null,null,null,null,null,null,null,null,null,null,null,null,null,null,null,"","",""]
[112,null,null,null,null,null,null,null,null,null,null,null,null,null,null,null,null,null,"","",""]
[113,null,null,null,null,null,null,null,null,null,null,null,null,null,null,null,null,null,"","",""]
[114,null,null,null,null,null,null,null,null,null,null,null,null,null,null,null,null,null,"","",""]
[115,null,null,null,null,null,null,null,null,null,null,null,null,null,null,null,null,null,"","",""]
[116,null,null,null,null,null,null,null,null,null,null,null,null,null,null,null,null,null,"","",""]
[117,null,null,null,null,null,null,null,null,null,null,null,null,null,null,null,null,null,"","",""]
[118,null,null,null,null,null,null,null,null,null,null,null,null,null,null,null,null,null,"","",""]
[119,null,null,null,null,null,null,null,null,null,null,null,null,null,null,null,null,null,"","",""]
[120,null,null,null,null,null,null,null,null,null,null,null,null,null,null,null,null,null,"","",""]
[121,null,null,null,null,null,null,null,null,null,null,null,null,null,null,null,null,null,"","",""]
[122,null,null,null,null,null,null,null,null,null,null,null,null,null,null,null,null,null,"","",""]
[123,null,null,null,null,null,null,null,null,null,null,null,null,null,null,null,null,null,"","",""]
[124,null,null,null,null,null,null,null,null,null,null,null,null,null,null,null,null,null,"","",""]
[125,null,null,null,null,null,null,null,null,null,null,null,null,null,null,null,null,null,"","",""]
[126,null,null,null,null,null,null,null,null,null,null,null,null,null,null,null,null,null,"","",""]
[127,null,null,null,null,null,null,null,null,null,null,null,null,null,null,null,null,null,"","",""]
[128,null,null,null,null,null,null,null,null,null,null,null,null,null,null,null,null,null,"","",""]
[129,null,null,null,null,null,null,null,null,null,null,null,null,null,null,null,null,null,"","",""]
[130,null,null,null,null,null,null,null,null,null,null,null,null,null,null,null,null,null,"","",""]
[131,null,null,null,null,null,null,null,null,null,null,null,null,null,null,null,null,null,"","",""]
[132,null,null,null,null,null,null,null,null,null,null,null,null,null,null,null,null,null,"","",""]
[133,null,null,null,null,null,null,null,null,null,null,null,null,null,null,null,null,null,"","",""]
[134,null,null,null,null,null,null,null,null,null,null,null,null,null,null,null,null,null,"","",""]
[135,null,null,null,null,null,null,null,null,null,null,null,null,null,null,null,null,null,"","",""]
[136,null,null,null,null,null,null,null,null,null,null,null,null,null,null,null,null,null,"","",""]
[137,null,null,null,null,null,null,null,null,null,null,null,null,null,null,null,null,null,"","",""]
[138,null,null,null,null,null,null,null,null,null,null,null,null,null,null,null,null,null,"","",""]
[139,null,null,null,null,null,null,null,null,null,null,null,null,null,null,null,null,null,"","",""]
[140,null,null,null,null,null,null,null,null,null,null,null,null,null,null,null,null,null,"","",""]
[141,null,null,null,null,null,null,null,null,null,null,null,null,null,null,null,null,null,"","",""]
[142,null,null,null,null,null,null,null,null,null,null,null,null,null,null,null,null,null,"","",""]
[143,null,null,null,null,null,null,null,null,null,null,null,null,null,null,null,null,null,"","",""]
[144,null,null,null,null,null,null,null,null,null,null,null,null,null,null,null,null,null,"","",""]
[145,null,null,null,null,null,null,null,null,null,null,null,null,null,null,null,null,null,"","",""]
[146,null,null,null,null,null,null,null,null,null,null,null,null,null,null,null,null,null,"","",""]
[147,null,null,null,null,null,null,null,null,null,null,null,null,null,null,null,null,null,"","",""]
[148,null,null,null,null,null,null,null,null,null,null,null,null,null,null,null,null,null,"","",""]
[{"$f":"ROW(G154)-5","v":149},null,null,null,null,null,null,null,null,null,null,null,null,null,null,null,null,null,"","",""]
[150,null,null,null,null,null,null,null,null,null,null,null,null,null,null,null,null,null,"","",""]
[151,null,null,null,null,null,null,null,null,null,null,null,null,null,null,null,null,null,"","",""]
[152,null,null,null,null,null,null,null,null,null,null,null,null,null,null,null,null,null,"","",""]
[153,null,null,null,null,null,null,null,null,null,null,null,null,null,null,null,null,null,"","",""]
[154,null,null,null,null,null,null,null,null,null,null,null,null,null,null,null,null,null,"","",""]
[155,null,null,null,null,null,null,null,null,null,null,null,null,null,null,null,null,null,"","",""]
[156,null,null,null,null,null,null,null,null,null,null,null,null,null,null,null,null,null,"","",""]
[157,null,null,null,null,null,null,null,null,null,null,null,null,null,null,null,null,null,"","",""]
[158,null,null,null,null,null,null,null,null,null,null,null,null,null,null,null,null,null,"","",""]
[159,null,null,null,null,null,null,null,null,null,null,null,null,null,null,null,null,null,"","",""]
[160,null,null,null,null,null,null,null,null,null,null,null,null,null,null,null,null,null,"","",""]
[161,null,null,null,null,null,null,null,null,null,null,null,null,null,null,null,null,null,"","",""]
[162,null,null,null,null,null,null,null,null,null,null,null,null,null,null,null,null,null,"","",""]
[163,null,null,null,null,null,null,null,null,null,null,null,null,null,null,null,null,null,"","",""]
[164,null,null,null,null,null,null,null,null,null,null,null,null,null,null,null,null,null,"","",""]
[165,null,null,null,null,null,null,null,null,null,null,null,null,null,null,null,null,null,"","",""]
[166,null,null,null,null,null,null,null,null,null,null,null,null,null,null,null,null,null,"","",""]
[167,null,null,null,null,null,null,null,null,null,null,null,null,null,null,null,null,null,"","",""]
[168,null,null,null,null,null,null,null,null,null,null,null,null,null,null,null,null,null,"","",""]
[169,null,null,null,null,null,null,null,null,null,null,null,null,null,null,null,null,null,"","",""]
[170,null,null,null,null,null,null,null,null,null,null,null,null,null,null,null,null,null,"","",""]
[171,null,null,null,null,null,null,null,null,null,null,null,null,null,null,null,null,null,"","",""]
[172,null,null,null,null,null,null,null,null,null,null,null,null,null,null,null,null,null,"","",""]
[173,null,null,null,null,null,null,null,null,null,null,null,null,null,null,null,null,null,"","",""]
[174,null,null,null,null,null,null,null,null,null,null,null,null,null,null,null,null,null,"","",""]
[175,null,null,null,null,null,null,null,null,null,null,null,null,null,null,null,null,null,"","",""]
[176,null,null,null,null,null,null,null,null,null,null,null,null,null,null,null,null,null,"","",""]
[177,null,null,null,null,null,null,null,null,null,null,null,null,null,null,null,null,null,"","",""]
[178,null,null,null,null,null,null,null,null,null,null,null,null,null,null,null,null,null,"","",""]
[179,null,null,null,null,null,null,null,null,null,null,null,null,null,null,null,null,null,"","",""]
[180,null,null,null,null,null,null,null,null,null,null,null,null,null,null,null,null,null,"","",""]
[181,null,null,null,null,null,null,null,null,null,null,null,null,null,null,null,null,null,"","",""]
[182,null,null,null,null,null,null,null,null,null,null,null,null,null,null,null,null,null,"","",""]
[183,null,null,null,null,null,null,null,null,null,null,null,null,null,null,null,null,null,"","",""]
[184,null,null,null,null,null,null,null,null,null,null,null,null,null,null,null,null,null,"","",""]
[185,null,null,null,null,null,null,null,null,null,null,null,null,null,null,null,null,null,"","",""]
[186,null,null,null,null,null,null,null,null,null,null,null,null,null,null,null,null,null,"","",""]
[187,null,null,null,null,null,null,null,null,null,null,null,null,null,null,null,null,null,"","",""]
[188,null,null,null,null,null,null,null,null,null,null,null,null,null,null,null,null,null,"","",""]
[189,null,null,null,null,null,null,null,null,null,null,null,null,null,null,null,null,null,"","",""]
[190,null,null,null,null,null,null,null,null,null,null,null,null,null,null,null,null,null,"","",""]
[191,null,null,null,null,null,null,null,null,null,null,null,null,null,null,null,null,null,"","",""]
[192,null,null,null,null,null,null,null,null,null,null,null,null,null,null,null,null,null,"","",""]
[193,null,null,null,null,null,null,null,null,null,null,null,null,null,null,null,null,null,"","",""]
[194,null,null,null,null,null,null,null,null,null,null,null,null,null,null,null,null,null,"","",""]
[195,null,null,null,null,null,null,null,null,null,null,null,null,null,null,null,null,null,"","",""]
[196,null,null,null,null,null,null,null,null,null,null,null,null,null,null,null,null,null,"","",""]
[197,null,null,null,null,null,null,null,null,null,null,null,null,null,null,null,null,null,"","",""]
[198,null,null,null,null,null,null,null,null,null,null,null,null,null,null,null,null,null,"","",""]
[199,null,null,null,null,null,null,null,null,null,null,null,null,null,null,null,null,null,"","",""]
[200,null,null,null,null,null,null,null,null,null,null,null,null,null,null,null,null,null,"","",""]
[201,null,null,null,null,null,null,null,null,null,null,null,null,null,null,null,null,null,"","",""]
[202,null,null,null,null,null,null,null,null,null,null,null,null,null,null,null,null,null,"","",""]
[203,null,null,null,null,null,null,null,null,null,null,null,null,null,null,null,null,null,"","",""]
[204,null,null,null,null,null,null,null,null,null,null,null,null,null,null,null,null,null,"","",""]
[205,null,null,null,null,null,null,null,null,null,null,null,null,null,null,null,null,null,"","",""]
[206,null,null,null,null,null,null,null,null,null,null,null,null,null,null,null,null,null,"","",""]
[207,null,null,null,null,null,null,null,null,null,null,null,null,null,null,null,null,null,"","",""]
[208,null,null,null,null,null,null,null,null,null,null,null,null,null,null,null,null,null,"","",""]
[209,null,null,null,null,null,null,null,null,null,null,null,null,null,null,null,null,null,"","",""]
[210,null,null,null,null,null,null,null,null,null,null,null,null,null,null,null,null,null,"","",""]
[211,null,null,null,null,null,null,null,null,null,null,null,null,null,null,null,null,null,"","",""]
[212,null,null,null,null,null,null,null,null,null,null,null,null,null,null,null,null,null,"","",""]
[{"$f":"ROW(G218)-5","v":213},null,null,null,null,null,null,null,null,null,null,null,null,null,null,null,null,null,"","",""]
[214,null,null,null,null,null,null,null,null,null,null,null,null,null,null,null,null,null,"","",""]
[215,null,null,null,null,null,null,null,null,null,null,null,null,null,null,null,null,null,"","",""]
[216,null,null,null,null,null,null,null,null,null,null,null,null,null,null,null,null,null,"","",""]
[217,null,null,null,null,null,null,null,null,null,null,null,null,null,null,null,null,null,"","",""]
[218,null,null,null,null,null,null,null,null,null,null,null,null,null,null,null,null,null,"","",""]
[219,null,null,null,null,null,null,null,null,null,null,null,null,null,null,null,null,null,"","",""]
[220,null,null,null,null,null,null,null,null,null,null,null,null,null,null,null,null,null,"","",""]
[221,null,null,null,null,null,null,null,null,null,null,null,null,null,null,null,null,null,"","",""]
[222,null,null,null,null,null,null,null,null,null,null,null,null,null,null,null,null,null,"","",""]
[223,null,null,null,null,null,null,null,null,null,null,null,null,null,null,null,null,null,"","",""]
[224,null,null,null,null,null,null,null,null,null,null,null,null,null,null,null,null,null,"","",""]
[225,null,null,null,null,null,null,null,null,null,null,null,null,null,null,null,null,null,"","",""]
[226,null,null,null,null,null,null,null,null,null,null,null,null,null,null,null,null,null,"","",""]
[227,null,null,null,null,null,null,null,null,null,null,null,null,null,null,null,null,null,"","",""]
[228,null,null,null,null,null,null,null,null,null,null,null,null,null,null,null,null,null,"","",""]
[229,null,null,null,null,null,null,null,null,null,null,null,null,null,null,null,null,null,"","",""]
[230,null,null,null,null,null,null,null,null,null,null,null,null,null,null,null,null,null,"","",""]
[231,null,null,null,null,null,null,null,null,null,null,null,null,null,null,null,null,null,"","",""]
[232,null,null,null,null,null,null,null,null,null,null,null,null,null,null,null,null,null,"","",""]
[233,null,null,null,null,null,null,null,null,null,null,null,null,null,null,null,null,null,"","",""]
[234,null,null,null,null,null,null,null,null,null,null,null,null,null,null,null,null,null,"","",""]
[235,null,null,null,null,null,null,null,null,null,null,null,null,null,null,null,null,null,"","",""]
[236,null,null,null,null,null,null,null,null,null,null,null,null,null,null,null,null,null,"","",""]
[237,null,null,null,null,null,null,null,null,null,null,null,null,null,null,null,null,null,"","",""]
[238,null,null,null,null,null,null,null,null,null,null,null,null,null,null,null,null,null,"","",""]
[239,null,null,null,null,null,null,null,null,null,null,null,null,null,null,null,null,null,"","",""]
[240,null,null,null,null,null,null,null,null,null,null,null,null,null,null,null,null,null,"","",""]
[241,null,null,null,null,null,null,null,null,null,null,null,null,null,null,null,null,null,"","",""]
[242,null,null,null,null,null,null,null,null,null,null,null,null,null,null,null,null,null,"","",""]
[243,null,null,null,null,null,null,null,null,null,null,null,null,null,null,null,null,null,"","",""]
[244,null,null,null,null,null,null,null,null,null,null,null,null,null,null,null,null,null,"","",""]
[245,null,null,null,null,null,null,null,null,null,null,null,null,null,null,null,null,null,"","",""]
[246,null,null,null,null,null,null,null,null,null,null,null,null,null,null,null,null,null,"","",""]
[247,null,null,null,null,null,null,null,null,null,null,null,null,null,null,null,null,null,"","",""]
[248,null,null,null,null,null,null,null,null,null,null,null,null,null,null,null,null,null,"","",""]
[249,null,null,null,null,null,null,null,null,null,null,null,null,null,null,null,null,null,"","",""]
[250,null,null,null,null,null,null,null,null,null,null,null,null,null,null,null,null,null,"","",""]
[251,null,null,null,null,null,null,null,null,null,null,null,null,null,null,null,null,null,"","",""]
[252,null,null,null,null,null,null,null,null,null,null,null,null,null,null,null,null,null,"","",""]
[253,null,null,null,null,null,null,null,null,null,null,null,null,null,null,null,null,null,"","",""]
[254,null,null,null,null,null,null,null,null,null,null,null,null,null,null,null,null,null,"","",""]
[255,null,null,null,null,null,null,null,null,null,null,null,null,null,null,null,null,null,"","",""]
[256,null,null,null,null,null,null,null,null,null,null,null,null,null,null,null,null,null,"","",""]
[257,null,null,null,null,null,null,null,null,null,null,null,null,null,null,null,null,null,"","",""]
[258,null,null,null,null,null,null,null,null,null,null,null,null,null,null,null,null,null,"","",""]
[259,null,null,null,null,null,null,null,null,null,null,null,null,null,null,null,null,null,"","",""]
[260,null,null,null,null,null,null,null,null,null,null,null,null,null,null,null,null,null,"","",""]
[261,null,null,null,null,null,null,null,null,null,null,null,null,null,null,null,null,null,"","",""]
[262,null,null,null,null,null,null,null,null,null,null,null,null,null,null,null,null,null,"","",""]
[263,null,null,null,null,null,null,null,null,null,null,null,null,null,null,null,null,null,"","",""]
[264,null,null,null,null,null,null,null,null,null,null,null,null,null,null,null,null,null,"","",""]
[265,null,null,null,null,null,null,null,null,null,null,null,null,null,null,null,null,null,"","",""]
[266,null,null,null,null,null,null,null,null,null,null,null,null,null,null,null,null,null,"","",""]
[267,null,null,null,null,null,null,null,null,null,null,null,null,null,null,null,null,null,"","",""]
[268,null,null,null,null,null,null,null,null,null,null,null,null,null,null,null,null,null,"","",""]
[269,null,null,null,null,null,null,null,null,null,null,null,null,null,null,null,null,null,"","",""]
[270,null,null,null,null,null,null,null,null,null,null,null,null,null,null,null,null,null,"","",""]
[271,null,null,null,null,null,null,null,null,null,null,null,null,null,null,null,null,null,"","",""]
[272,null,null,null,null,null,null,null,null,null,null,null,null,null,null,null,null,null,"","",""]
[273,null,null,null,null,null,null,null,null,null,null,null,null,null,null,null,null,null,"","",""]
[274,null,null,null,null,null,null,null,null,null,null,null,null,null,null,null,null,null,"","",""]
[275,null,null,null,null,null,null,null,null,null,null,null,null,null,null,null,null,null,"","",""]
[276,null,null,null,null,null,null,null,null,null,null,null,null,null,null,null,null,null,"","",""]
[{"$f":"ROW(G282)-5","v":277},null,null,null,null,null,null,null,null,null,null,null,null,null,null,null,null,null,"","",""]
[278,null,null,null,null,null,null,null,null,null,null,null,null,null,null,null,null,null,"","",""]
[279,null,null,null,null,null,null,null,null,null,null,null,null,null,null,null,null,null,"","",""]
[280,null,null,null,null,null,null,null,null,null,null,null,null,null,null,null,null,null,"","",""]
[281,null,null,null,null,null,null,null,null,null,null,null,null,null,null,null,null,null,"","",""]
[282,null,null,null,null,null,null,null,null,null,null,null,null,null,null,null,null,null,"","",""]
[283,null,null,null,null,null,null,null,null,null,null,null,null,null,null,null,null,null,"","",""]
[284,null,null,null,null,null,null,null,null,null,null,null,null,null,null,null,null,null,"","",""]
[285,null,null,null,null,null,null,null,null,null,null,null,null,null,null,null,null,null,"","",""]
[286,null,null,null,null,null,null,null,null,null,null,null,null,null,null,null,null,null,"","",""]
[287,null,null,null,null,null,null,null,null,null,null,null,null,null,null,null,null,null,"","",""]
[288,null,null,null,null,null,null,null,null,null,null,null,null,null,null,null,null,null,"","",""]
[289,null,null,null,null,null,null,null,null,null,null,null,null,null,null,null,null,null,"","",""]
[290,null,null,null,null,null,null,null,null,null,null,null,null,null,null,null,null,null,null,null,""]
[291,null,null,null,null,null,null,null,null,null,null,null,null,null,null,null,null,null,null,null,""]
[292,null,null,null,null,null,null,null,null,null,null,null,null,null,null,null,null,null,null,null,""]
[293,null,null,null,null,null,null,null,null,null,null,null,null,null,null,null,null,null,null,null,""]
[294,null,null,null,null,null,null,null,null,null,null,null,null,null,null,null,null,null,null,null,""]
[295,null,null,null,null,null,null,null,null,null,null,null,null,null,null,null,null,null,null,null,""]
[296,null,null,null,null,null,null,null,null,null,null,null,null,null,null,null,null,null,null,null,""]
[297,null,null,null,null,null,null,null,null,null,null,null,null,null,null,null,null,null,null,null,""]
[298,null,null,null,null,null,null,null,null,null,null,null,null,null,null,null,null,null,null,null,""]
[299,null,null,null,null,null,null,null,null,null,null,null,null,null,null,null,null,null,null,null,""]
[300,null,null,null,null,null,null,null,null,null,null,null,null,null,null,null,null,null,null,null,""]

{"sheet":"Ril 100 Codes","index":1,"n_rows":3,"n_cols":2,"rows_kept":3,"cut":false,"hidden":false,"merged":[[2,1,2,10],[1,1,1,10]]}
[]
[null,"Die RIL 100 Codes zu den einzelnen Betriebsstellen können im Trassenfinder der DB InfraGO eingesehen werden:"]
[null,"https://www.dbinfrago.com/web/schienennetz/leistungen/trassen/trassenbestellung/trassenfinder-10907438"]

{"sheet":"Drop-down","index":2,"n_rows":33,"n_cols":15,"rows_kept":33,"cut":false,"hidden":true,"merged":[]}
["Art der Rückmeldung",null,null,null,"Verkehrsart","Menge","Anzahl Kapazitäten","Art des Angebots",null,null,null,null,null,"mKoK_Netzgrafiken","Hintergrund_Aenderungswunsch"]
["Bestätigung",null,null,null,"FV","Einzellage",1,"10 min",null,null,null,null,null,"SPV BaWue","Infrastrukturelle Änderungen 2027 / 2028"]
["Änderungswunsch",null,null,null,"NV","HVZ-Verstärker",2,"15 min",null,null,null,null,null,"SPV Bayern","Grundsätzlicher Anpassungswunsch im mKoK"]
["Zusatzverkehr",null,null,null,"GV","Takt",3,"20 min",null,null,null,null,null,"SPV Hessen","Sonstiger Hintergrund"]
[null,null,null,null,null,null,4,"30 min",null,null,null,null,null,"SPV Nordost"]
[null,null,null,null,null,null,5,"60 min",null,null,null,null,null,"SPV NRW"]
[null,null,null,null,null,null,6,"120 min",null,null,null,null,null,"SPV RLP SL"]
[null,null,null,null,null,null,7,"180 min",null,null,null,null,null,"SPV Suedost"]
[null,null,null,null,null,null,8,"240 min",null,null,null,null,null,"SPV Nord"]
[null,null,null,null,null,null,9,null,null,null,null,null,null,"SGV Nordost"]
[null,null,null,null,null,null,10,null,null,null,null,null,null,"SGV Nordwest"]
[null,null,null,null,null,null,11,null,null,null,null,null,null,"SGV Sued"]
[null,null,null,null,null,null,12,null,null,null,null,null,null,"SPFV Gesamt"]
[null,null,null,null,null,null,13]
[null,null,null,null,null,null,14]
[null,null,null,null,null,null,15]
[null,null,null,null,null,null,16]
[null,null,null,null,null,null,17]
[null,null,null,null,null,null,18]
[null,null,null,null,null,null,19]
[null,null,null,null,null,null,20]
[null,null,null,null,null,null,21]
[null,null,null,null,null,null,22]
[null,null,null,null,null,null,23]
[null,null,null,null,null,null,24]
[null,null,null,null,null,null,25]
[null,null,null,null,null,null,26]
[null,null,null,null,null,null,27]
[null,null,null,null,null,null,28]
[null,null,null,null,null,null,29]
[null,null,null,null,null,null,30]
[null,null,null,null,null,null,31]
[null,null,null,null,null,null,32]